fUSD/lending_fUSD_20260529
["ID","MTS","AMOUNT","RATE_DAILY","PERIOD"]
[423264057,1780000130000,-152.0,0.00039668,30]
[423264058,1780000130000,-727.65710051,0.00039766,120]
[423264060,1780000130000,-727.65710051,0.00039766,120]
[423264062,1780000130000,-727.65710051,0.00039766,120]
[423264071,1780000130000,-154.0,0.000398,120]
[423264063,1780000130000,-727.65710051,0.00039766,120]
[423264064,1780000130000,-727.65710051,0.00039766,120]
[423264065,1780000130000,-727.65710051,0.00039766,120]
[423264066,1780000130000,-727.65710051,0.00039766,120]
[423264067,1780000130000,-727.65710051,0.00039766,120]
[423264068,1780000130000,-727.6571005,0.00039766,120]
[423264069,1780000130000,-727.6571005,0.00039766,120]
[423264070,1780000130000,-727.6571005,0.00039766,120]
[423264061,1780000130000,-727.65710051,0.00039766,120]
[423264078,1780000131000,-727.65710051,0.00039903,120]
[423264076,1780000131000,-727.65710051,0.00039903,120]
[423264077,1780000131000,-727.65710051,0.00039903,120]
[423264079,1780000131000,-727.65710051,0.00039903,120]
[423264075,1780000131000,-727.65710051,0.00039903,120]
[423264073,1780000131000,-727.65710051,0.00039903,120]
[423264072,1780000131000,-727.65710051,0.00039903,120]
[423264074,1780000131000,-727.65710051,0.00039903,120]
[423264080,1780000131000,-727.65710051,0.00039903,120]
[423264091,1780000131000,-652.0,0.00040726,120]
[423264082,1780000131000,-727.6571005,0.00039903,120]
[423264084,1780000131000,-727.6571005,0.00039903,120]
[423264083,1780000131000,-727.6571005,0.00039903,120]
[423264085,1780000131000,-160.0,0.0004,49]
[423264086,1780000131000,-500.0,0.00040356,60]
[423264087,1780000131000,-300.0,0.00040356,60]
[423264088,1780000131000,-500.0,0.00040356,60]
[423264089,1780000131000,-154.0,0.000407,120]
[423264090,1780000131000,-652.0,0.00040726,120]
[423264081,1780000131000,-727.65710051,0.00039903,120]
[423264099,1780000132000,-660.651,0.00040726,120]
[423264098,1780000132000,-652.0,0.00040726,120]
[423264097,1780000132000,-652.0,0.00040726,120]
[423264096,1780000132000,-652.0,0.00040726,120]
[423264100,1780000132000,-158.0,0.000411,120]
[423264094,1780000132000,-652.0,0.00040726,120]
[423264093,1780000132000,-652.0,0.00040726,120]
[423264092,1780000132000,-652.0,0.00040726,120]
[423264095,1780000132000,-652.0,0.00040726,120]
[423264101,1780000132000,-322.461786,0.000415,31]
[423264112,1780000132000,-267.77775526,0.000419,120]
[423264102,1780000132000,-322.461786,0.000415,31]
[423264111,1780000132000,-267.77775526,0.000419,120]
[423264110,1780000132000,-267.77775526,0.000419,120]
[423264109,1780000132000,-267.77775526,0.000419,120]
[423264107,1780000132000,-154.0,0.000416,120]
[423264103,1780000132000,-322.461786,0.000415,31]
[423264108,1780000132000,-267.77775526,0.000419,120]
[423264105,1780000132000,-151.0,0.000415,120]
[423264104,1780000132000,-151.0,0.000415,120]
[423264106,1780000132000,-151.0,0.000415,120]
[423264122,1780000133000,-1500.0,0.00041999,30]
[423264113,1780000133000,-267.77775526,0.000419,120]
[423264116,1780000133000,-267.77775526,0.000419,120]
[423264115,1780000133000,-267.77775526,0.000419,120]
[423264117,1780000133000,-267.77775526,0.000419,120]
[423264118,1780000133000,-267.77775526,0.000419,120]
[423264120,1780000133000,-267.77775526,0.000419,120]
[423264119,1780000133000,-267.77775526,0.000419,120]
[423264121,1780000133000,-267.77775526,0.000419,120]
[423264114,1780000133000,-267.77775526,0.000419,120]
[423264124,1780000133000,-152.0,0.00041999,120]
[423264126,1780000133000,-1030.0,0.00041999,30]
[423264127,1780000133000,-151.0,0.00041999,120]
[423264125,1780000133000,-1555.5,0.00041999,30]
[423264128,1780000133000,-211.73944204,0.00041999,120]
[423264129,1780000133000,-426.68416749,0.00041999,30]
[423264130,1780000133000,-151.0,0.00041999,120]
[423264131,1780000133000,-1613.0535,0.00041999,30]
[423264132,1780000133000,-151.0,0.00041999,120]
[423264133,1780000133000,-1672.7364795,0.00041999,30]
[423264123,1780000133000,-152.0,0.00041999,120]
[423264142,1780000134000,-151.0,0.00041999,120]
[423264140,1780000134000,-151.0,0.00041999,120]
[423264139,1780000134000,-1934.38338736,0.00041999,30]
[423264134,1780000134000,-151.0,0.00041999,120]
[423264141,1780000134000,-2005.9555727,0.00041999,30]
[423264136,1780000134000,-151.0,0.00041999,120]
[423264135,1780000134000,-1734.62772924,0.00041999,30]
[423264137,1780000134000,-1798.80895522,0.00041999,30]
[423264143,1780000134000,-151.0,0.00041999,120]
[423264138,1780000134000,-1865.36488656,0.00041999,30]
[423264145,1780000134000,-151.0,0.00041999,120]
[423264144,1780000134000,-2080.17592889,0.00041999,30]
[423264152,1780000134000,-2405.55389863,0.00041999,30]
[423264153,1780000134000,-151.0,0.00041999,120]
[423264151,1780000134000,-151.0,0.00041999,120]
[423264154,1780000134000,-2494.55939288,0.00041999,30]
[423264149,1780000134000,-151.0,0.00041999,120]
[423264148,1780000134000,-2236.95670847,0.00041999,30]
[423264147,1780000134000,-151.0,0.00041999,120]
[423264146,1780000134000,-2157.14243826,0.00041999,30]
[423264150,1780000134000,-2319.72410669,0.00041999,30]
[423264163,1780000135000,-151.0,0.00041999,120]
[423264155,1780000135000,-151.0,0.00041999,120]
[423264156,1780000135000,-2586.85809042,0.00041999,30]
[423264157,1780000135000,-151.0,0.00041999,120]
[423264158,1780000135000,-2682.57183977,0.00041999,30]
[423264161,1780000135000,-151.0,0.00041999,120]
[423264160,1780000135000,-2781.82699784,0.00041999,30]
[423264162,1780000135000,-2884.75459676,0.00041999,30]
[423264165,1780000135000,-151.0,0.00041999,120]
[423264159,1780000135000,-151.0,0.00041999,120]
[423264166,1780000135000,-151.0,0.00041999,120]
[423264167,1780000135000,-54939.94846613,0.00042,120]
[423264169,1780000135000,-1000000.0,0.00042,120]
[423264168,1780000135000,-1000000.0,0.00042,120]
[423264171,1780000135000,-1000000.0,0.00042,120]
[423264170,1780000135000,-1000000.0,0.00042,120]
[423264173,1780000135000,-1000185.22,0.00042,120]
[423264172,1780000135000,-1000000.0,0.00042,120]
[423264174,1780000135000,-1000000.0,0.00042,120]
[423264175,1780000135000,-1363731.0,0.00042,120]
[423264164,1780000135000,-2991.49051684,0.00041999,30]
[423264176,1780000136000,-2500.0,0.00042,30]
[423264177,1780000136000,-180.4617703,0.00042,120]
[423264180,1780000136000,-439236.62151195,0.00042,120]
[423264178,1780000136000,-1000.0,0.00042,120]
[423264181,1780000136000,-250.0,0.00012695,2]
[423264183,1780000136000,-222.9,0.00012747,2]
[423264182,1780000136000,-471.06,0.0001272,2]
[423264184,1780000136000,-71.30580249,0.00012764,2]
[423264179,1780000136000,-6089.5666677,0.00042,120]
[423264185,1780000138000,500.0,0.00012695,2]
[423264186,1780000140000,-250.0,0.00012086,2]
[423264187,1780000153000,-500.0,0.00012086,2]
[423264188,1780000154000,-725.33244841,0.00012086,2]
[423264190,1780000155000,-322.01590857,0.00012694,2]
[423264189,1780000155000,-216.62755159,0.00012086,2]
[423264191,1780000155000,-142.945444,0.00012694,2]
[423264192,1780000173000,-280.13,0.00012217,2]
[423264193,1780000174000,-357.054556,0.00012694,2]
[423264194,1780000174000,-259.56176797,0.00012694,2]
[423264196,1780000174000,-808.4,0.00028243,30]
[423264195,1780000174000,-714.72,0.00028234,30]
[423264198,1780000174000,-714.72,0.00028489,30]
[423264197,1780000174000,-1116.37,0.00028368,30]
[423264199,1780000174000,-393.22,0.00028525,30]
[423264200,1780000174000,-454.38,0.00028623,30]
[423264201,1780000174000,-169.21,0.00028636,30]
[423264209,1780000174000,-313.0,0.00031858,30]
[423264208,1780000174000,-150.72,0.0003105,30]
[423264206,1780000174000,-456.79764672,0.00029112,120]
[423264202,1780000174000,-714.72,0.00028744,30]
[423264205,1780000174000,-500.0,0.00029112,120]
[423264204,1780000174000,-454.38,0.00028874,30]
[423264203,1780000174000,-454.38,0.00028748,30]
[423264207,1780000174000,-154.38,0.00029452,30]
[423264216,1780000175000,-500.0,0.00035616,120]
[423264210,1780000175000,-201.82097945,0.00032,120]
[423264211,1780000175000,-808.4,0.0003344,30]
[423264212,1780000175000,-1116.37,0.00033523,30]
[423264213,1780000175000,-393.22,0.00033628,30]
[423264214,1780000175000,-154.38,0.00033961,30]
[423264215,1780000175000,-500.0,0.00034799,120]
[423264217,1780000175000,-169.21,0.00036235,30]
[423264218,1780000175000,-154.38,0.00036644,30]
[423264221,1780000175000,-160.0,0.000374,37]
[423264220,1780000175000,-291.78,0.00037,35]
[423264222,1780000175000,-500.0,0.00037555,120]
[423264223,1780000175000,-229.04,0.000384,41]
[423264225,1780000175000,-969.73,0.00038626,30]
[423264224,1780000175000,-432.8,0.00038584,30]
[423264227,1780000175000,-1116.37,0.00038679,30]
[423264226,1780000175000,-808.4,0.00038638,30]
[423264219,1780000175000,-241.7,0.00037,35]
[423264228,1780000175000,-354.96,0.00038717,30]
[423264236,1780000176000,-500.0,0.00039452,60]
[423264237,1780000176000,-500.0,0.00039452,60]
[423264234,1780000176000,-500.0,0.00039452,60]
[423264235,1780000176000,-500.0,0.00039452,60]
[423264229,1780000176000,-393.22,0.00038732,30]
[423264232,1780000176000,-500.0,0.00039452,60]
[423264231,1780000176000,-500.0,0.00039452,60]
[423264230,1780000176000,-500.0,0.00039452,60]
[423264233,1780000176000,-500.0,0.00039452,60]
[423264238,1780000176000,-500.0,0.00039452,60]
[423264247,1780000176000,-194.52,0.000396,47]
[423264240,1780000176000,-500.0,0.00039452,60]
[423264241,1780000176000,-500.0,0.00039452,60]
[423264242,1780000176000,-500.0,0.00039452,60]
[423264243,1780000176000,-500.0,0.00039452,60]
[423264244,1780000176000,-500.0,0.00039452,60]
[423264246,1780000176000,-500.0,0.00039452,60]
[423264245,1780000176000,-500.0,0.00039452,60]
[423264248,1780000176000,-194.52,0.000396,47]
[423264249,1780000176000,-440.44,0.00039726,60]
[423264239,1780000176000,-500.0,0.00039452,60]
[423264258,1780000177000,-2500.0,0.0004081,120]
[423264257,1780000177000,-150.72,0.00040639,30]
[423264256,1780000177000,-500.0,0.00040356,60]
[423264255,1780000177000,-2500.0,0.00040305,120]
[423264251,1780000177000,-2380.52,0.000398,120]
[423264254,1780000177000,-2972.0,0.0004,120]
[423264259,1780000177000,-50000.0,0.00040999,61]
[423264252,1780000177000,-6326.67,0.000398,120]
[423264250,1780000177000,-2500.0,0.000398,120]
[423264253,1780000177000,-50000.0,0.0004,60]
[423264260,1780000177000,-500.0,0.00041095,30]
[423264268,1780000177000,-178.5185035,0.000419,120]
[423264263,1780000177000,-500.0,0.00041643,50]
[423264261,1780000177000,-2500.0,0.00041315,120]
[423264270,1780000177000,-500.0,0.00041917,60]
[423264269,1780000177000,-178.5185035,0.000419,120]
[423264267,1780000177000,-178.51850352,0.000419,120]
[423264271,1780000177000,-560763.37848805,0.00042,120]
[423264265,1780000177000,-2500.0,0.0004182,120]
[423264264,1780000177000,-6173.60210951,0.000417,120]
[423264262,1780000177000,-500.0,0.00041369,40]
[423264266,1780000177000,-2506.58169459,0.000419,120]
[423264278,1780000178000,-315.8,0.00042,59]
[423264272,1780000178000,-1000000.0,0.00042,120]
[423264273,1780000178000,-20000.0,0.00042,30]
[423264274,1780000178000,-727.0,0.00042,120]
[423264276,1780000178000,-800.0,0.00042,45]
[423264275,1780000178000,-16376.0,0.00042,120]
[423264277,1780000178000,-800.0,0.00042,45]
[423264280,1780000178000,-2500.0,0.00042,120]
[423264279,1780000178000,-800.0,0.00042,45]
[423264281,1780000178000,-2500.0,0.00042,120]
[423264287,1780000178000,-719.725494,0.00042,30]
[423264288,1780000178000,-719.725494,0.00042,30]
[423264286,1780000178000,-719.725494,0.00042,30]
[423264289,1780000178000,-719.725504,0.00042,30]
[423264283,1780000178000,-2393.67941249,0.00042,120]
[423264284,1780000178000,-151.0,0.00042,120]
[423264282,1780000178000,-2500.0,0.00042,120]
[423264285,1780000178000,-151.0,0.00042,120]
[423264297,1780000179000,-158.837251,0.00042,120]
[423264290,1780000179000,-151.0,0.00042,120]
[423264292,1780000179000,-163.34455,0.00042,120]
[423264291,1780000179000,-151.0,0.00042,120]
[423264293,1780000179000,-163.34455,0.00042,120]
[423264294,1780000179000,-163.34455,0.00042,120]
[423264296,1780000179000,-158.837251,0.00042,120]
[423264295,1780000179000,-163.34454,0.00042,120]
[423264298,1780000179000,-158.837251,0.00042,120]
[423264307,1780000179000,-194.012164,0.00042,120]
[423264299,1780000179000,-158.837251,0.00042,120]
[423264300,1780000179000,-151.0,0.00042,60]
[423264308,1780000179000,-151.0,0.00042,120]
[423264305,1780000179000,-194.012164,0.00042,120]
[423264306,1780000179000,-194.012164,0.00042,120]
[423264309,1780000179000,-164.69452,0.00042,120]
[423264304,1780000179000,-194.012164,0.00042,120]
[423264302,1780000179000,-204077.13162229,0.00042,60]
[423264301,1780000179000,-5252.65962025,0.00042,120]
[423264303,1780000179000,-1000.0,0.00042,120]
[423264319,1780000180000,-151.0,0.00042,120]
[423264310,1780000180000,-465.991259,0.00042,30]
[423264312,1780000180000,-465.991259,0.00042,30]
[423264311,1780000180000,-164.69452,0.00042,120]
[423264314,1780000180000,-465.991259,0.00042,30]
[423264313,1780000180000,-164.69452,0.00042,120]
[423264316,1780000180000,-465.991259,0.00042,30]
[423264315,1780000180000,-164.69452,0.00042,120]
[423264317,1780000180000,-241.878924,0.00042,120]
[423264321,1780000180000,-241.878924,0.00042,120]
[423264318,1780000180000,-241.878924,0.00042,120]
[423264331,1780000180000,-500.0,0.00042191,70]
[423264322,1780000180000,-151.0,0.00042,120]
[423264323,1780000180000,-151.0,0.00042,120]
[423264325,1780000180000,-684.90447362,0.000421,35]
[423264324,1780000180000,-500.0,0.00042,120]
[423264327,1780000180000,-375.12003202,0.00042121,120]
[423264326,1780000180000,-30000.0,0.00042111,120]
[423264328,1780000180000,-330.0,0.00042142,94]
[423264330,1780000180000,-500.0,0.00042191,70]
[423264329,1780000180000,-157.08859473,0.00042178,60]
[423264320,1780000180000,-241.878924,0.00042,120]
[423264340,1780000181000,-150.0,0.00042328,30]
[423264339,1780000181000,-2500.0,0.00042325,120]
[423264338,1780000181000,-2500.0,0.000423,120]
[423264336,1780000181000,-2500.0,0.000423,120]
[423264334,1780000181000,-1457.37,0.00042269,30]
[423264333,1780000181000,-353.2600933,0.00042249,120]
[423264332,1780000181000,-170.97997697,0.00042224,60]
[423264341,1780000181000,-1455.6,0.00042347,120]
[423264335,1780000181000,-308.09903826,0.000423,120]
[423264343,1780000181000,-2357.47575068,0.0004245,120]
[423264337,1780000181000,-2500.0,0.000423,120]
[423264345,1780000181000,-500.0,0.00042465,80]
[423264342,1780000181000,-30202.0,0.000424,30]
[423264352,1780000181000,-1786.39847006,0.000425,60]
[423264351,1780000181000,-800.0,0.000425,45]
[423264349,1780000181000,-800.0,0.000425,45]
[423264350,1780000181000,-800.0,0.000425,45]
[423264353,1780000181000,-1200.0,0.000425,120]
[423264348,1780000181000,-153.05,0.00042499,120]
[423264347,1780000181000,-161.69107757,0.00042466,120]
[423264346,1780000181000,-3516.0,0.00042466,120]
[423264344,1780000181000,-500.0,0.00042465,80]
[423264354,1780000181000,-66491.34035645,0.000425,120]
[423264361,1780000182000,-387.62,0.000425,61]
[423264355,1780000182000,-1352.305384,0.000425,120]
[423264357,1780000182000,-1003.35775406,0.000425,120]
[423264356,1780000182000,-400.0,0.000425,30]
[423264358,1780000182000,-800.0,0.000425,45]
[423264359,1780000182000,-800.0,0.000425,45]
[423264360,1780000182000,-800.0,0.000425,45]
[423264362,1780000182000,-3911.05298483,0.000425,120]
[423264366,1780000182000,-154.39,0.0004252,30]
[423264364,1780000182000,-154.0,0.000425,120]
[423264365,1780000182000,-100745.7867617,0.000425,120]
[423264367,1780000182000,-933.15,0.00042532,60]
[423264369,1780000182000,-151.0,0.00042533,120]
[423264368,1780000182000,-706.0,0.00042533,120]
[423264371,1780000182000,-489.0,0.00042533,120]
[423264370,1780000182000,-158.0,0.00042533,120]
[423264372,1780000182000,-159.0,0.00042533,120]
[423264363,1780000182000,-2293.86307068,0.000425,120]
[423264379,1780000183000,-151.0,0.00042554,120]
[423264378,1780000183000,-283.0,0.00042554,120]
[423264376,1780000183000,-1160.21,0.00042552,60]
[423264380,1780000183000,-1050.0,0.00042554,120]
[423264374,1780000183000,-456.7,0.00042546,120]
[423264375,1780000183000,-19405.11,0.00042546,120]
[423264373,1780000183000,-162.0,0.00042533,120]
[423264377,1780000183000,-157.0,0.00042554,120]
[423264381,1780000183000,-410.0,0.00042554,120]
[423264391,1780000183000,-500.0,0.00042684,120]
[423264382,1780000183000,-156.0,0.00042554,120]
[423264390,1780000183000,-1401.66,0.00042657,60]
[423264392,1780000183000,-150.0,0.00042693,120]
[423264389,1780000183000,-4923.41864919,0.00042612,120]
[423264388,1780000183000,-199.0,0.00042603,30]
[423264383,1780000183000,-158.0,0.00042554,120]
[423264387,1780000183000,-2500.0,0.000426,120]
[423264384,1780000183000,-330.0,0.00042561,99]
[423264385,1780000183000,-187.32,0.000426,61]
[423264386,1780000183000,-2500.0,0.000426,120]
[423264393,1780000184000,-694.4054,0.000427,90]
[423264394,1780000184000,-158.0,0.000427,120]
[423264396,1780000184000,-217.0,0.00042739,120]
[423264397,1780000184000,-217.0,0.00042739,120]
[423264398,1780000184000,-217.0,0.00042739,120]
[423264399,1780000184000,-217.0,0.00042739,120]
[423264401,1780000184000,-217.0,0.00042739,120]
[423264400,1780000184000,-217.0,0.00042739,120]
[423264403,1780000184000,-208.34579744,0.00042739,120]
[423264395,1780000184000,-500.0,0.00042739,90]
[423264405,1780000184000,-500.0,0.00042739,90]
[423264402,1780000184000,-217.0,0.00042739,120]
[423264411,1780000184000,-2500.0,0.000429,120]
[423264409,1780000184000,-150.0,0.00042876,30]
[423264410,1780000184000,-1039.56768001,0.000429,120]
[423264412,1780000184000,-2500.0,0.000429,120]
[423264408,1780000184000,-330.0,0.00042846,103]
[423264406,1780000184000,-2112.32812812,0.000428,120]
[423264404,1780000184000,-238.0,0.00042739,120]
[423264407,1780000184000,-2500.0,0.0004283,120]
[423264413,1780000185000,-394.70099714,0.0004299,60]
[423264419,1780000185000,-800.0,0.00043,45]
[423264414,1780000185000,-1735285.93372105,0.0004299,30]
[423264416,1780000185000,-1061.81510169,0.00042999,120]
[423264415,1780000185000,-294692.32471616,0.0004299,30]
[423264418,1780000185000,-200.0,0.00042999,120]
[423264417,1780000185000,-1000.0,0.00042999,120]
[423264420,1780000185000,-800.0,0.00043,45]
[423264422,1780000185000,-2263.43997339,0.00043,30]
[423264424,1780000185000,-198.98068289,0.00043,120]
[423264423,1780000185000,-1000000.0,0.00043,120]
[423264425,1780000185000,-1457.06523074,0.00043,120]
[423264427,1780000185000,-1000000.0,0.00043,120]
[423264426,1780000185000,-648.35755126,0.00043,120]
[423264428,1780000185000,-1000000.0,0.00043,120]
[423264430,1780000185000,-1200.0,0.00043,120]
[423264429,1780000185000,-9000.0,0.00043,120]
[423264432,1780000185000,-5000.0,0.00043,120]
[423264421,1780000185000,-800.0,0.00043,45]
[423264431,1780000185000,-1455.6,0.00043,120]
[423264435,1780000186000,-1500.0,0.00043,120]
[423264433,1780000186000,-4619.55851842,0.00043,120]
[423264434,1780000186000,-450.25854091,0.00043,120]
[423264436,1780000186000,-2137.87079331,0.00043,120]
[423264438,1780000186000,-1124691.66,0.00043,120]
[423264439,1780000186000,-487114.90989748,0.00043,120]
[423264437,1780000186000,-7389.66107,0.00043,120]
[423264441,1780000191000,-560.65,0.00028226,30]
[423264442,1780000191000,-160.77,0.00028404,30]
[423264443,1780000191000,-160.77,0.00028404,30]
[423264440,1780000191000,-160.77,0.00025447,30]
[423264444,1780000191000,-560.65,0.00028484,30]
[423264446,1780000191000,-369.22,0.00028611,30]
[423264447,1780000191000,-1406.59,0.00028676,30]
[423264445,1780000191000,-1406.59,0.00028514,30]
[423264455,1780000192000,-1000.0,0.00042,120]
[423264448,1780000192000,-369.22,0.0002874,30]
[423264449,1780000192000,-1406.59,0.00028838,30]
[423264451,1780000192000,-216.56,0.000355,30]
[423264452,1780000192000,-216.56,0.000368,30]
[423264453,1780000192000,-200.0,0.00037649,30]
[423264454,1780000192000,-216.56,0.00041,30]
[423264457,1780000192000,-1000000.0,0.00043,120]
[423264450,1780000192000,-216.56,0.00034,30]
[423264458,1780000192000,-1000000.0,0.00043,120]
[423264459,1780000192000,-500000.0,0.00043,120]
[423264460,1780000192000,-1000000.0,0.00043,120]
[423264461,1780000192000,-1000000.0,0.00043,120]
[423264462,1780000192000,-1000000.0,0.00043,120]
[423264463,1780000192000,-1000000.0,0.00043,120]
[423264465,1780000192000,-700251.84989748,0.00043,120]
[423264464,1780000192000,-1000000.0,0.00043,120]
[423264456,1780000192000,-791120.09010252,0.00043,120]
[423264466,1780000195000,-522.85,0.00028218,30]
[423264467,1780000195000,-936.47,0.00028502,30]
[423264470,1780000195000,-1100000.0,0.00043,120]
[423264469,1780000195000,-299748.15010252,0.00043,120]
[423264471,1780000195000,-261392.0,0.00043,120]
[423264468,1780000195000,-233.94,0.00028598,30]
[423264472,1780000196000,-1000000.0,0.00043,120]
[423264473,1780000196000,-1000000.0,0.00043,120]
[423264474,1780000196000,-1000000.0,0.00043,120]
[423264478,1780000196000,-1000000.0,0.00043,120]
[423264476,1780000196000,-1564749.0,0.00043,120]
[423264477,1780000196000,-1000000.0,0.00043,120]
[423264479,1780000196000,-766872.93468409,0.00043,120]
[423264475,1780000196000,-5544.65521339,0.00043,120]
[423264487,1780000200000,-180.49,0.00043,63]
[423264480,1780000200000,-522.85,0.00028478,30]
[423264482,1780000200000,-233.94,0.00028732,30]
[423264483,1780000200000,-50000.0,0.00041999,62]
[423264484,1780000200000,-233127.06531591,0.00043,120]
[423264486,1780000200000,-800.0,0.00043,45]
[423264485,1780000200000,-800.0,0.00043,45]
[423264488,1780000200000,-180.49,0.00043,63]
[423264481,1780000200000,-936.47,0.00028668,30]
[423264490,1780000200000,-3061.34111917,0.00043,120]
[423264491,1780000200000,-2684.85286344,0.00043,120]
[423264492,1780000200000,-2883.39308727,0.00043,120]
[423264494,1780000200000,-194.012164,0.00043,120]
[423264493,1780000200000,-194.012164,0.00043,120]
[423264496,1780000200000,-194.012164,0.00043,120]
[423264497,1780000200000,-194.012164,0.00043,120]
[423264495,1780000200000,-194.012164,0.00043,120]
[423264489,1780000200000,-671.07666709,0.00043,45]
[423264506,1780000201000,-465.991259,0.00043,30]
[423264504,1780000201000,-465.991259,0.00043,30]
[423264503,1780000201000,-164.69452,0.00043,120]
[423264502,1780000201000,-465.991259,0.00043,30]
[423264498,1780000201000,-194.012164,0.00043,120]
[423264500,1780000201000,-194.012172,0.00043,120]
[423264499,1780000201000,-194.012164,0.00043,120]
[423264505,1780000201000,-164.69452,0.00043,120]
[423264501,1780000201000,-164.69452,0.00043,120]
[423264508,1780000201000,-465.991259,0.00043,30]
[423264507,1780000201000,-164.69452,0.00043,120]
[423264519,1780000201000,-289.401155,0.00043,120]
[423264511,1780000201000,-151.0,0.00043,120]
[423264510,1780000201000,-241.878924,0.00043,120]
[423264513,1780000201000,-241.878924,0.00043,120]
[423264512,1780000201000,-241.878924,0.00043,120]
[423264515,1780000201000,-151.0,0.00043,120]
[423264514,1780000201000,-151.0,0.00043,120]
[423264516,1780000201000,-289.401155,0.00043,120]
[423264517,1780000201000,-289.401155,0.00043,120]
[423264518,1780000201000,-289.401155,0.00043,120]
[423264509,1780000201000,-241.878924,0.00043,120]
[423264527,1780000202000,-151.0,0.00043,120]
[423264525,1780000202000,-157.102677,0.00043,120]
[423264526,1780000202000,-151.0,0.00043,120]
[423264523,1780000202000,-289.401155,0.00043,120]
[423264528,1780000202000,-258.347736,0.00043,120]
[423264521,1780000202000,-289.401155,0.00043,120]
[423264522,1780000202000,-289.401155,0.00043,120]
[423264520,1780000202000,-289.401155,0.00043,120]
[423264524,1780000202000,-151.0,0.00043,120]
[423264529,1780000202000,-151.0,0.00043,120]
[423264540,1780000202000,-3053.703981,0.00043,120]
[423264531,1780000202000,-357.781792,0.00043,120]
[423264533,1780000202000,-357.781792,0.00043,120]
[423264532,1780000202000,-357.781792,0.00043,120]
[423264534,1780000202000,-451.556684,0.00043,120]
[423264535,1780000202000,-451.556684,0.00043,120]
[423264536,1780000202000,-451.556684,0.00043,120]
[423264537,1780000202000,-451.556684,0.00043,120]
[423264538,1780000202000,-3053.703981,0.00043,120]
[423264539,1780000202000,-3053.703981,0.00043,120]
[423264530,1780000202000,-357.781792,0.00043,120]
[423264548,1780000203000,-2618.046349,0.00043,120]
[423264547,1780000203000,-2618.046349,0.00043,120]
[423264546,1780000203000,-151.0,0.00043,120]
[423264545,1780000203000,-151.0,0.00043,120]
[423264550,1780000203000,-2618.046349,0.00043,120]
[423264542,1780000203000,-3053.703981,0.00043,120]
[423264543,1780000203000,-151.0,0.00043,120]
[423264541,1780000203000,-151.0,0.00043,120]
[423264544,1780000203000,-151.0,0.00043,120]
[423264549,1780000203000,-2618.046349,0.00043,120]
[423264552,1780000203000,-6851.7,0.00043,120]
[423264551,1780000203000,-32334.83,0.00043,120]
[423264561,1780000203000,-1912.068565,0.00043,120]
[423264559,1780000203000,-1912.068565,0.00043,120]
[423264558,1780000203000,-1108.258453,0.00043,120]
[423264557,1780000203000,-1912.068565,0.00043,120]
[423264560,1780000203000,-1108.258453,0.00043,120]